[Event "45th FIDE Olympiad 2024"]
[Site "Budapest"]
[Date "2024.09.15"]
[Round "5.47"]
[White "Maurizzi, Marc`andria"]
[Black "Peng, Li Min"]
[Result "1-0"]
[ECO "B50"]
[WhiteElo "2595"]
[BlackElo "2514"]
[Annotator "TA"]
[PlyCount "91"]
[EventDate "2024.09.05"]
[EventType "team-tourn"]
[EventCountry "HUN"]
[SourceTitle "playchess.com"]
[Source "ChessBase"]
[SourceQuality "1"]
[WhiteTeam "France"]
[BlackTeam "Switzerland"]
[WhiteTeamCountry "FRA"]
[BlackTeamCountry "SUI"]
[TimeControl "40/5400+30:1800+30"]

{[%evp 10,91,14,16,12,12,12,8,12,5,8,0,0,0,0,0,0,-9,0,-2,0,-1,-8,-16,0,0,0,0,0,0,0,0,0,0,12,4,20,0,0,0,10,0,8,3,33,30,37,41,28,35,78,64,75,72,66,76,94,95,105,93,213,220,215,215,681,625,585,435,887,722,3119,2468,5202,5081,6199,3063,29971,29969,29974,29975,29976,29977,29977,29978]} 1. e4 {[%emt 0:01:02]} c5 {[%emt 0:01:04]} 2. Nf3 {[%emt 0:01:03]} d6 {[%emt 0:00:42]} 3. Bb5+ {[%emt 0:02:34]} Bd7 {[%emt 0:00:53]} 4. Bxd7+ {[%emt 0:00:57]} Nxd7 {[%emt 0:00:35]} 5. c3 {[%emt 0:02:05]} Ngf6 {[%emt 0:01:25]} 6. Qe2 {[%emt 0:04:24]} e6 {[%emt 0:00:23]} 7. d4 {[%emt 0:00:04]} cxd4 {[%emt 0:00:10]} 8. cxd4 {[%emt 0:01:24]} d5 {[%emt 0:04:42] The position is equal.} 9. e5 {[%emt 0:01:07]} Bb4+ {[%emt 0:00:13]} 10. Bd2 {[%emt 0:01:19]} Bxd2+ {[%emt 0:01:02]} 11. Nbxd2 {[%emt 0:00:03]} Ng8 {[%emt 0:00:16]} 12. O-O {[%emt 0:04:50]} Ne7 {[%emt 0:01:23]} 13. h4 {[%emt 0:05:04]} Qb6 {[%emt 0:03:45]} 14. Rfd1 {[%emt 0:11:49]} Rc8 {[%emt 0:11:43]} 15. Nf1 {[%emt 0:03:25][%cal Bd2f1,Bf1e3,Be3g4,Bg4e5,Be5d3][%mdl 32]} O-O {[%emt 0:04:00]} 16. Ne3 {[%emt 0:12:39]} f6 {[%emt 0:05:23]} 17. exf6 {[%emt 0:03:02]} Nxf6 {[%emt 0:00:06]} 18. Rac1 {[%emt 0:12:45]} Ne4 {[%emt 0:02:11]} 19. Rxc8 {[%emt 0:03:17]} Nxc8 {[%emt 0:04:52][%cal Be7c8,Bc8d6,Bd6f5][%mdl 32]} 20. Ng4 {[%emt 0:03:56]} Ncd6 {[%emt 0:08:26]} 21. Nge5 {[%emt 0:01:34]} Qc7 {[%emt 0:00:16] Against Nd7} 22. Re1 {[%emt 0:12:30]} Nf5 {[%emt 0:07:26]} 23. Qd3 {[%emt 0:05:17]} Rc8 {[%emt 0:00:05]} 24. g3 {[%emt 0:03:11]} Qc2 {[%emt 0:15:23]} 25. Re2 {[%emt 0:00:04]} Qxd3 {[%emt 0:00:02]} 26. Nxd3 {[%emt 0:00:03]} Rc4 {[%emt 0:00:05]} 27. Nf4 {[%emt 0:00:06]} Nxd4 {[%emt 0:01:47]} 28. Nxd4 {[%emt 0:00:03]} Rxd4 {[%emt 0:00:03]} 29. Nxe6 $11 {[%emt 0:00:03][%mdl 4096] Endgame. KRN-KRN} Ra4 {[%emt 0:17:25]} 30. a3 $1 {[%emt 0:01:45]} Kf7 {[%emt 0:00:14]} 31. Nd8+ {[%emt 0:01:30]} Kf6 {[%emt 0:00:24]} 32. Nxb7 {[%emt 0:00:05]} Rd4 {[%emt 0:04:31]} 33. Na5 {[%emt 0:01:34]} a6 {[%emt 0:03:02]} 34. Kg2 $1 {[%emt 0:01:05]} Rd2 {[%emt 0:00:07]} (34... Rd1 $16 {keeps fighting.}) 35. Rxd2 $18 {[%emt 0:01:02]} Nxd2 {[%emt 0:00:01] KN-KN} 36. f3 $1 {[%emt 0:00:05] Strongly threatening Kf2.} Ke5 $2 {[%emt 0:03:38] [#]} (36... d4 37. Kf2 d3) 37. Kf2 $1 {[%emt 0:00:04]} Kd4 {[%emt 0:00:08]} 38. Ke2 {[%emt 0:00:12]} Nc4 {[%emt 0:00:44] [#]} (38... Nb1 $142 39. h5 g5) 39. Nxc4 $1 {[%emt 0:01:39]} Kxc4 {[%emt 0:00:36] KP-KP} 40. g4 {[%emt 0:00:48][%cal Bg3g4,Bg4g5][%mdl 32]} a5 {[%emt 0:00:19]} 41. a4 {[%emt 0:06:05]} Kb3 {[%emt 0:10:02]} 42. f4 {[%emt 0:01:42]} (42. h5 $142 Kxa4 43. f4) 42... Kxa4 {[%emt 0:00:03]} 43. f5 {[%emt 0:01:26][%cal Bf4f5,Bf5f6][%mdl 32] White mates.} Kb5 {[%emt 0:01:20]} 44. g5 {[%emt 0:00:39]} Kc5 {[%emt 0:01:09]} 45. h5 {[%emt 0:00:59]} Kd6 {[%emt 0:00:28]} 46. f6 {[%emt 0:00:10] Weighted Error Value: White=0.02 (flawless) /Black=0.35.  Mistake:       	---       	Black=2      Inaccurate:     	---       	Black=3      OK:         	White=13    	Black=10     Best:        	White=2     	Black=1      Strong:       	White=5     	---} 1-0

[Event "45th FIDE Olympiad 2024"]
[Site "Budapest"]
[Date "2024.09.15"]
[Round "5.47"]
[White "Al Busaidi, Hamood"]
[Black "Karabo, Mokete"]
[Result "1-0"]
[ECO "A73"]
[WhiteElo "1881"]
[BlackElo "1836"]
[PlyCount "85"]
[EventDate "2024.09.05"]
[EventType "team-tourn"]
[EventCountry "HUN"]
[WhiteTeam "Oman"]
[BlackTeam "Lesotho"]
[WhiteTeamCountry "OMN"]
[BlackTeamCountry "LES"]
[TimeControl "40/5400+30:1800+30"]

1. d4 Nf6 2. c4 c5 3. d5 e6 4. Nc3 exd5 5. cxd5 d6 6. e4 g6 7. Nf3 Bg7 8. Nd2 O-O 9. Be2 Na6 10. O-O Nc7 11. a4 b6 12. f3 Rb8 13. Nc4 Ba6 14. Bg5 Bxc4 15. Bxc4 h6 16. Bh4 g5 17. Bf2 Nd7 18. Bb5 a6 19. Bxd7 Qxd7 20. h4 f5 21. exf5 Qxf5 22. Qd2 g4 23. Bg3 Bd4+ 24. Kh2 gxf3 25. Rxf3 Qh5 26. Raf1 Be5 27. Bxe5 Rxf3 28. Rxf3 Qxe5+ 29. Rg3+ Kf7 30. Qxh6 Rg8 31. Qh7+ Rg7 32. Qxg7+ Qxg7 33. Rxg7+ Kxg7 34. Ne4 Ne8 35. Kg3 b5 36. axb5 axb5 37. Kf4 b4 38. b3 Nf6 39. Nxd6 Nxd5+ 40. Ke4 Nb6 41. g4 Kf6 42. Kd3 Ke5 43. Nc4+ 1-0

[Event "45th FIDE Olympiad 2024"]
[Site "Budapest"]
[Date "2024.09.15"]
[Round "5.48"]
[White "Georgiadis, Nico"]
[Black "Fressinet, Laurent"]
[Result "1/2-1/2"]
[ECO "C65"]
[WhiteElo "2510"]
[BlackElo "2616"]
[Annotator "RC"]
[PlyCount "152"]
[EventDate "2024.09.05"]
[EventType "team-tourn"]
[EventCountry "HUN"]
[SourceTitle "playchess.com"]
[Source "ChessBase"]
[SourceQuality "1"]
[WhiteTeam "Switzerland"]
[BlackTeam "France"]
[WhiteTeamCountry "SUI"]
[BlackTeamCountry "FRA"]
[TimeControl "40/5400+30:1800+30"]

1. e4 {[%emt 0:00:03]} e5 {[%emt 0:00:46]} 2. Nf3 {[%emt 0:00:10]} Nc6 {[%emt 0:00:05]} 3. Bb5 {[%emt 0:00:09]} Nf6 {[%emt 0:00:04]} 4. d3 {[%emt 0:00:28]} Bc5 {[%emt 0:03:02]} 5. Bxc6 {[%emt 0:00:06]} dxc6 {[%emt 0:00:06]} 6. O-O {[%emt 0:00:08]} Bd6 {[%emt 0:01:17]} 7. Nbd2 {[%emt 0:00:07]} Be6 {[%emt 0:01:03]} 8. Nb3 {[%emt 0:01:47]} a5 {[%emt 0:07:48]} 9. Qe1 {[%emt 0:00:35]} a4 {[%emt 0:14:36]} 10. Na5 {[%emt 0:00:11]} Bc8 {[%emt 0:02:44]} 11. Nc4 {[%emt 0:10:38]} Nd7 {[%emt 0:01:39]} 12. d4 {[%emt 0:04:15]} Qe7 {[%emt 0:02:41]} 13. dxe5 {[%emt 0:23:36]} Nxe5 {[%emt 0:04:59]} 14. Nfxe5 {[%emt 0:00:11]} Bxe5 {[%emt 0:00:04]} 15. Nxe5 {[%emt 0:00:11]} Qxe5 {[%emt 0:00:05]} 16. Bd2 {[%emt 0:00:37]} Be6 {[%emt 0:09:45]} 17. Qe3 {[%emt 0:06:18]} f6 {[%emt 0:12:46]} 18. Bc3 {[%emt 0:09:15]} Qh5 {[%emt 0:01:56]} 19. a3 {[%emt 0:01:19]} O-O {[%emt 0:02:27]} 20. Rad1 {[%emt 0:04:59]} Rfd8 {[%emt 0:10:54]} 21. f3 {[%emt 0:00:58]} b6 {[%emt 0:03:26]} 22. h3 {[%emt 0:10:18]} Qe8 {[%emt 0:06:06]} 23. Rde1 {[%emt 0:01:04]} Bc4 {[%emt 0:02:24]} 24. Rf2 {[%emt 0:00:06]} Rd7 {[%emt 0:00:05]} 25. f4 {[%emt 0:02:42]} Rad8 {[%emt 0:01:56]} 26. f5 {[%emt 0:02:34]} Rd1 {[%emt 0:02:26]} 27. Rxd1 {[%emt 0:06:10]} Rxd1+ {[%emt 0:00:01]} 28. Kh2 {[%emt 0:00:07]} Qe7 {[%emt 0:05:35]} 29. e5 {[%emt 0:07:54]} fxe5 {[%emt 0:00:40]} 30. f6 {[%emt 0:02:25]} Qc5 {[%emt 0:03:15]} 31. Qg3 {[%emt 0:03:21]} g6 {[%emt 0:00:37]} 32. Bxe5 {[%emt 0:01:02]} Kf7 {[%emt 0:00:24]} 33. Bxc7 {[%emt 0:00:39]} Rf1 {[%emt 0:00:29]} 34. Rxf1 {[%emt 0:00:58]} Bxf1 {[%emt 0:00:02]} 35. Qf4 {[%emt 0:00:58]} Qf5 {[%emt 0:00:49]} 36. Qh6 {[%emt 0:01:25]} Qxf6 {[%emt 0:00:47]} 37. Qxh7+ {[%emt 0:00:10]} Ke6 {[%emt 0:00:28]} 38. Qg8+ {[%emt 0:00:20]} Kd7 {[%emt 0:00:25]} 39. Bxb6 {[%emt 0:00:22]} Bb5 {[%emt 0:00:43]} 40. Qh7+ {[%emt 0:01:14]} Ke6 41. Bc7 {[%emt 0:02:27]} c5 {[%emt 0:06:17]} 42. Bg3 {[%emt 0:05:16]} Bc6 {[%emt 0:00:54]} 43. Qc7 {[%emt 0:01:31]} Kd5 {[%emt 0:00:02]} 44. b3 {[%emt 0:00:53]} axb3 {[%emt 0:01:40]} 45. cxb3 {[%emt 0:00:04]} Ke4 {[%emt 0:05:12]} 46. Qa7 {[%emt 0:04:31]} Qf5 {[%emt 0:03:26]} 47. Bd6 {[%emt 0:03:53]} c4 {[%emt 0:02:17]} 48. bxc4 {[%emt 0:00:23]} Kd3 {[%emt 0:00:04]} 49. Qa6 {[%emt 0:08:16]} Qe4 {[%emt 0:01:20]} 50. c5+ {[%emt 0:00:04]} Kc3 {[%emt 0:00:25]} 51. Qf1 {[%emt 0:00:12]} Kb3 {[%emt 0:00:04]} 52. Qf3+ {[%emt 0:04:22]} Qxf3 {[%emt 0:00:07]} 53. gxf3 {[%emt 0:00:03]} Bxf3 {[%emt 0:00:09]} 54. Kg3 {[%emt 0:00:03]} Bc6 {[%emt 0:01:31]} 55. Kf4 {[%emt 0:00:04]} Ka4 {[%emt 0:02:22]} 56. Be7 {[%emt 0:01:49]} Kb5 {[%emt 0:02:11]} 57. h4 {[%emt 0:00:51]} Ka6 {[%emt 0:01:57]} 58. Ke5 {[%emt 0:02:03]} Kb7 {[%emt 0:03:19]} 59. Bd8 {[%emt 0:00:25]} Ka6 {[%emt 0:01:57]} 60. Kd6 {[%emt 0:00:37]} Kb7 {[%emt 0:00:07]} 61. Bb6 {[%emt 0:00:20]} Be8 {[%emt 0:01:23]} 62. Ke7 {[%emt 0:00:41]} Bc6 {[%emt 0:00:45]} 63. Kf7 {[%emt 0:00:16]} Be4 {[%emt 0:00:04]} 64. a4 {[%emt 0:00:07]} Ka6 {[%emt 0:00:37]} 65. Ke6 {[%emt 0:01:13]} Bc6 {[%emt 0:00:43]} 66. a5 {[%emt 0:00:04]} Kb5 {[%emt 0:00:37]} 67. Kd6 {[%emt 0:01:08]} Be4 {[%emt 0:00:40]} 68. Kc7 {[%emt 0:00:27]} Ka6 {[%emt 0:00:41]} 69. c6 {[%emt 0:00:54]} Kb5 {[%emt 0:00:03]} 70. Bf2 {[%emt 0:02:00]} Kxa5 {[%emt 0:00:21]} 71. Kd7 {[%emt 0:00:23]} Ka6 {[%emt 0:00:46]} 72. c7 {[%emt 0:00:05]} Bf5+ {[%emt 0:00:05]} 73. Kd8 {[%emt 0:00:24]} Kb7 {[%emt 0:00:05]} 74. Bg3 {[%emt 0:00:04]} Bg4 {[%emt 0:00:08]} 75. Ke7 {[%emt 0:00:26]} Kc8 {[%emt 0:00:11]} 76. Kf6 {[%emt 0:00:02]} Bh5 {[%emt 0:00:12]} 1/2-1/2

[Event "45th FIDE Olympiad 2024"]
[Site "Budapest"]
[Date "2024.09.15"]
[Round "5.48"]
[White "Motlomelo, Lihloela"]
[Black "Al Mashikhi, Mohammed Alyan"]
[Result "1-0"]
[ECO "C01"]
[WhiteElo "1696"]
[BlackElo "1959"]
[PlyCount "101"]
[EventDate "2024.09.05"]
[EventType "team-tourn"]
[EventCountry "HUN"]
[WhiteTeam "Lesotho"]
[BlackTeam "Oman"]
[WhiteTeamCountry "LES"]
[BlackTeamCountry "OMN"]
[TimeControl "40/5400+30:1800+30"]

1. e4 e6 2. d4 d5 3. exd5 exd5 4. c4 Nf6 5. Nc3 Be7 6. cxd5 Nxd5 7. Bc4 Be6 8. Qb3 Bb4 9. Nge2 Bxc3+ 10. bxc3 b6 11. Ba3 c6 12. O-O b5 13. Bxd5 Bxd5 14. Qc2 Na6 15. Nf4 Nc7 16. Rfe1+ Ne6 17. Qf5 Qf6 18. Qxf6 gxf6 19. Nh5 O-O-O 20. Nxf6 Kc7 21. f4 Nxf4 22. Re7+ Kc8 23. Rxa7 Ne2+ 24. Kf2 Nxc3 25. Nxd5 Nxd5 26. Rc1 Kb8 27. Rxf7 b4 28. Rb1 Rhf8 29. Rxf8 Rxf8+ 30. Kg1 Kc7 31. Bxb4 Rf4 32. Bc5 Nc3 33. Rb2 Kd7 34. g3 Re4 35. Rb7+ Kc8 36. Rxh7 Nxa2 37. h4 Nc3 38. Kg2 Nd5 39. h5 Re2+ 40. Kf3 Re3+ 41. Kf2 Re8 42. h6 Nf6 43. Rg7 Rh8 44. g4 Rxh6 45. g5 Ne4+ 46. Ke3 Re6 47. Kf4 Nxc5 48. dxc5 Re1 49. g6 Rc1 50. Rh7 Rc4+ 51. Ke3 1-0

[Event "45th FIDE Olympiad 2024"]
[Site "Budapest"]
[Date "2024.09.15"]
[Round "5.49"]
[White "Supi, Luis Paulo"]
[Black "Predke, Alexandr"]
[Result "0-1"]
[ECO "C50"]
[WhiteElo "2570"]
[BlackElo "2671"]
[Annotator "TA"]
[PlyCount "208"]
[EventDate "2024.09.05"]
[EventType "team-tourn"]
[EventCountry "HUN"]
[SourceTitle "playchess.com"]
[Source "ChessBase"]
[SourceQuality "1"]
[WhiteTeam "Brazil"]
[BlackTeam "Serbia"]
[WhiteTeamCountry "BRA"]
[BlackTeamCountry "SRB"]
[TimeControl "40/5400+30:1800+30"]

{[%evp 9,208,7,16,9,11,0,0,0,0,0,0,0,0,0,0,-51,-51,-58,-57,-44,-48,-43,-23,-21,-11,-11,-12,-34,0,-49,-35,-63,-23,-37,-9,-9,-9,-21,-9,-16,0,0,0,0,0,0,0,0,0,0,0,0,0,0,0,0,0,0,0,0,0,0,0,0,0,0,0,0,0,0,0,0,0,-13,-13,-13,0,-27,-13,-13,-11,-11,0,-27,-27,-49,-49,-49,-49,-49,-49,-49,-49,-49,-49,-49,-49,-49,-49,-49,-49,-49,-49,-49,-49,-49,-49,-49,-49,-49,-34,-34,-34,-34,-34,-34,-34,-34,-34,-34,-34,-34,-34,-34,-34,-35,-35,-49,-49,-57,-49,-49,0,-57,-42,-42,-42,-42,-35,-42,-42,-42,-41,-42,-41,-41,0,-34,-34,-34,-34,-34,-34,-34,-34,-104,-87,-75,-34,-34,-34,-34,-34,-34,-34,-34,-34,-54,-55,-59,-59,-139,-139,-139,-89,-89,-89,-139,-139,-139,-139,-139,-168,-164,-149,-153,-153,-5747,-5121,-3966,-5289,-5068,-2852,-8225,-5747,-29967,-29968,-29968,-29969,-29961,-29954]} 1. e4 {[%emt 0:00:11]} e5 {[%emt 0:01:04]} 2. Nf3 {[%emt 0:00:21]} Nc6 {[%emt 0:00:05]} 3. Bc4 {[%emt 0:00:57]} Nf6 {[%emt 0:00:07]} 4. d3 {[%emt 0:00:05]} Bc5 {[%emt 0:00:19]} 5. a3 {[%emt 0:00:30]} O-O {[%emt 0:00:32]} 6. Nc3 {[%emt 0:00:43]} a5 {[%emt 0:00:19]} 7. h3 {[%emt 0:03:20]} d6 {[%emt 0:39:13]} 8. Bg5 {[%emt 0:00:51] The position is equal.} h6 {[%emt 0:01:13]} 9. Bh4 {[%emt 0:01:01]} Be6 {[%emt 0:00:58]} 10. Nd2 {[%emt 0:32:00]} Nd4 {[%emt 0:05:18]} 11. Nd5 {[%emt 0:14:49] Threatens to win with Nxf6+.} Bxd5 {[%emt 0:12:08]} 12. exd5 {[%emt 0:01:59]} (12. Bxd5 $11 g5 13. Bg3) 12... b5 $15 {[%emt 0:08:26]} 13. Ba2 {[%emt 0:02:11]} Nf5 {[%emt 0:04:12]} 14. Bxf6 {[%emt 0:00:44]} Qxf6 {[%emt 0:00:03]} 15. Ne4 {[%emt 0:00:19] Repels Ng3} Qg6 {[%emt 0:00:11]} 16. Qg4 {[%emt 0:04:39]} (16. O-O {seems wilder.} Bd4 17. c3 Ba7 18. Qe2) 16... Bb6 {[%emt 0:01:48]} 17. Qxg6 {[%emt 0:01:01]} fxg6 {[%emt 0:00:05]} 18. h4 {[%emt 0:00:41]} Ne7 {[%emt 0:07:19][%cal Bf5e7,Be7g8,Bg8f6][%mdl 32]} 19. Ke2 {[%emt 0:10:16]} (19. g3 $11 {should be considered.}) 19... Kh7 {[%emt 0:00:12]} 20. Raf1 {[%emt 0:00:25]} Ng8 {[%emt 0:03:08]} 21. c3 {[%emt 0:06:58]} Nf6 {[%emt 0:01:02]} 22. f3 {[%emt 0:00:56]} Kg8 {[%emt 0:02:57]} 23. Ra1 {[%emt 0:03:05]} Nh5 {[%emt 0:01:17]} 24. g3 {[%emt 0:00:28] Prevents Nf4+} Nf6 {[%emt 0:02:33]} 25. a4 {[%emt 0:01:04]} Nxe4 {[%emt 0:01:48]} 26. dxe4 {[%emt 0:00:07]} bxa4 {[%emt 0:00:02]} 27. Bc4 {[%emt 0:00:48]} g5 {[%emt 0:00:16]} 28. hxg5 {[%emt 0:04:11]} ({Don't play} 28. Rxa4 g4 29. Rf1 gxf3+ 30. Rxf3 g6 $17) 28... hxg5 {[%emt 0:00:05][%cal Og5g4]} 29. g4 {[%emt 0:01:15]} Kf7 {[%emt 0:00:14]} 30. Kf1 {[%emt 0:02:09]} Rh8 {[%emt 0:04:55]} 31. Rxh8 {[%emt 0:00:52]} Rxh8 $11 {[%emt 0:00:03][%mdl 4096] Endgame. KRB-KRB} 32. Kg2 {[%emt 0:00:06] Wards off Rh1} Be3 {[%emt 0:01:04]} 33. Rxa4 {[%emt 0:00:33]} Bf4 {[%emt 0:00:29]} 34. Rxa5 {[%emt 0:00:13]} Rh2+ {[%emt 0:00:02]} 35. Kf1 {[%emt 0:00:26]} Be3 {[%emt 0:00:10] Prevents Ra7} 36. Be2 {[%emt 0:01:31]} Rh1+ {[%emt 0:00:29]} 37. Kg2 {[%emt 0:00:08]} Rg1+ {[%emt 0:00:04]} 38. Kh2 {[%emt 0:00:59]} Rc1 {[%emt 0:00:43]} 39. Kg2 {[%emt 0:03:18]} Rc2 {[%emt 0:04:21][%csl LRb2,LRe2]} 40. Kf1 {[%emt 0:00:09]} Rxb2 {[%emt 0:00:03]} 41. Rb5 {[%emt 0:31:21]} Rc2 {[%emt 0:30:13]} 42. Rb3 {[%emt 0:01:05]} Rc1+ {[%emt 0:01:02]} 43. Kg2 {[%emt 0:00:00]} (43. Bd1 $5) 43... Rg1+ {[%emt 0:00:00]} 44. Kh2 {[%emt 0:00:00]} Re1 {[%emt 0:00:00]} 45. Bb5 {[%emt 0:00:00]} Rc1 {[%emt 0:00:00]} 46. Rb2 {[%emt 0:00:00]} Rxc3 {[%emt 0:00:00]} 47. Kg2 {[%emt 0:00:00]} Ra3 {[%emt 0:00:00]} 48. Rc2 {[%emt 0:00:00]} Bb6 {[%emt 0:00:00]} 49. Bc4 {[%emt 0:00:00]} Ra4 {[%emt 0:00:00]} 50. Bb5 {[%emt 0:00:00]} Ra1 {[%emt 0:00:00]} 51. Bc4 {[%emt 0:00:00]} Rg1+ {[%emt 0:00:00]} 52. Kh2 {[%emt 0:00:00]} Rb1 {[%emt 0:00:00]} 53. Kg2 {[%emt 0:00:00]} Ke7 {[%emt 0:00:00]} 54. Bd3 {[%emt 0:00:00][%cal Oc2c7]} Rg1+ {[%emt 0:00:00]} 55. Kh2 {[%emt 0:00:00][%cal Oc2c7]} Ra1 {[%emt 0:00:00]} 56. Bc4 {[%emt 0:00:00]} Rb1 {[%emt 0:00:00]} 57. Ba2 {[%emt 0:00:00]} Rf1 {[%emt 0:00:00]} 58. Kg2 {[%emt 0:00:00]} Rg1+ {[%emt 0:00:00]} 59. Kh2 {[%emt 0:00:00][%cal Oc2c7]} Kd7 {[%emt 0:00:00]} 60. Bb3 {[%emt 0:00:00]} Kc8 {[%emt 0:00:00]} 61. Bc4 {[%emt 0:00:00]} Rb1 {[%emt 0:00:00]} 62. Ra2 {[%emt 0:00:00]} Kb7 {[%emt 0:00:00]} 63. Ba6+ {[%emt 0:00:00]} Kb8 {[%emt 0:00:00]} 64. Bc4 {[%emt 0:00:00]} Bd4 {[%emt 0:00:00]} 65. Ba6 {[%emt 0:00:00]} Rc1 {[%emt 0:00:00]} 66. Kg2 {[%emt 0:00:00]} Ka7 {[%emt 0:00:00]} 67. Bd3+ {[%emt 0:00:00]} Kb7 {[%emt 0:00:00]} 68. Rc2 {[%emt 0:00:00]} Rg1+ {[%emt 0:00:00]} 69. Kh2 {[%emt 0:00:00]} Ra1 {[%emt 0:00:00]} 70. Kg2 {[%emt 0:00:00]} Rg1+ {[%emt 0:02:35]} 71. Kh2 {[%emt 0:00:00]} Rd1 {[%emt 0:00:05]} 72. Be2 {[%emt 0:00:06]} Rb1 {[%emt 0:01:15]} 73. Kg2 {[%emt 0:00:12]} Bc5 {[%emt 0:00:22]} 74. Bd3 {[%emt 0:00:09][%cal Oc2c5] And now Rxc5! would win.} Rg1+ {[%emt 0:03:43]} 75. Kh2 {[%emt 0:00:11][%cal Oc2c5] Rxc5! is the strong threat.} Rd1 {[%emt 0:00:09]} 76. Rb2+ {[%emt 0:00:21]} Ka7 {[%emt 0:00:02]} 77. Ra2+ {[%emt 0:01:06]} Kb7 {[%emt 0:00:08]} 78. Rb2+ {[%emt 0:00:06]} Bb6 {[%emt 0:00:02]} 79. Bb5 {[%emt 0:00:16]} Ra1 {[%emt 0:00:38]} 80. Bc6+ {[%emt 0:01:03]} Ka6 {[%emt 0:00:47]} 81. Kg2 {[%emt 0:00:33]} Bd4 {[%emt 0:00:43]} 82. Rc2 {[%emt 0:03:21]} (82. Rb3 $15) 82... Ka5 $1 $17 {[%emt 0:00:52]} 83. Be8 {[%emt 0:01:09]} Bb6 {[%emt 0:03:21]} 84. Rb2 $1 {[%emt 0:01:53]} Rg1+ {[%emt 0:00:03]} 85. Kh2 {[%emt 0:00:08] Hoping for Rb5+.} Rc1 {[%emt 0:00:02]} 86. Rb5+ {[%emt 0:00:43]} Ka6 {[%emt 0:00:01]} 87. Rb2 {[%emt 0:00:07]} Bd4 {[%emt 0:00:01]} 88. Ra2+ {[%emt 0:00:29]} Kb6 {[%emt 0:00:01]} 89. Kg2 {[%emt 0:04:39]} Kc5 {[%emt 0:01:30]} 90. Ra5+ {[%emt 0:00:54]} ({White should try} 90. Bg6 $15) 90... Kc4 {[%emt 0:00:48]} 91. Ra2 {[%emt 0:00:14] Prevents Rc2+} Kb3 {[%emt 0:01:27]} ({Black should play} 91... g6 $1 92. Bd7 Kb3) 92. Re2 {[%emt 0:00:24]} g6 {[%emt 0:01:42]} 93. Bb5 {[%emt 0:00:56]} ({Better is} 93. Bxg6 Kc4 94. Be8) 93... Ra1 {[%emt 0:00:43]} 94. Kg3 {[%emt 0:02:21]} Kb4 {[%emt 0:00:53]} 95. Be8 {[%emt 0:00:38]} Kc3 {[%emt 0:00:21]} 96. Kg2 {[%emt 0:01:34]} Ra5 {[%emt 0:02:13]} 97. Bd7 {[%emt 0:01:31]} Kd3 {[%emt 0:00:22]} 98. Kf1 $2 {[%emt 0:00:07] [#] White does not recover from this.} (98. Re1 $17) 98... Ra1+ $1 $19 {[%emt 0:02:12]} 99. Re1 {[%emt 0:00:01] [#]} Rxe1+ $1 {[%emt 0:00:27]} 100. Kxe1 {[%emt 0:00:12]} Ke3 {[%emt 0:00:02]} 101. Be8 {[%emt 0:02:25]} Kxf3 {[%emt 0:00:05]} 102. Bxg6 {[%emt 0:00:13]} Kxg4 {[%emt 0:00:04] Black mates.} 103. Ke2 {[%emt 0:02:12]} Kf4 {[%emt 0:00:04]} 104. Kf1 {[%emt 0:01:00]} Kf3 {[%emt 0:00:06] Weighted Error Value: White=0.06 (flawless) /Black=0.04 (flawless) .  Loses game:     	White=1     	---        Mistake:       	White=5     	Black=1      Inaccurate:     	White=3     	Black=4      OK:         	White=45    	Black=46     Best:        	White=4     	Black=2      Strong:       	White=1     	Black=2} 0-1

[Event "45th FIDE Olympiad 2024"]
[Site "Budapest"]
[Date "2024.09.15"]
[Round "5.49"]
[White "Pereira, Sergio"]
[Black "Kamara, Ansumana"]
[Result "1-0"]
[ECO "B30"]
[WhiteElo "1988"]
[BlackElo "1876"]
[PlyCount "83"]
[EventDate "2024.09.05"]
[EventType "team-tourn"]
[EventCountry "HUN"]
[WhiteTeam "Sao Tome and Principe"]
[BlackTeam "Sierra Leone"]
[WhiteTeamCountry "SAO"]
[BlackTeamCountry "SIE"]
[TimeControl "40/5400+30:1800+30"]

1. e4 c5 2. Nc3 e5 3. Bc4 Nc6 4. Nf3 Be7 5. d3 Nf6 6. Nd2 d6 7. Nf1 Bg4 8. f3 Bd7 9. Ne3 a6 10. Bd5 O-O 11. O-O Rb8 12. f4 exf4 13. Rxf4 Nxd5 14. Ncxd5 Bg5 15. Rf2 Be6 16. Nf4 b5 17. g3 a5 18. Bd2 a4 19. Nxe6 fxe6 20. Rxf8+ Qxf8 21. Qg4 Qf6 22. h4 Bxe3+ 23. Bxe3 Ne5 24. Qf4 Nf3+ 25. Kg2 Qxb2 26. Qxd6 Rf8 27. Qxe6+ Kh8 28. Rc1 Qc3 29. Qe7 Kg8 30. Qxc5 Qf6 31. Qh5 g6 32. Qd5+ Rf7 33. Bh6 Nd4 34. Qa8+ Rf8 35. Bxf8 Qf3+ 36. Kh3 Kf7 37. Qd5+ Ne6 38. Bh6 Ke7 39. Qxb5 Kf7 40. Qd7+ Kf6 41. e5+ Kxe5 42. Re1+ 1-0